[Event "Portuguese-ch U14-20 2022"]
[Site "Fatima"]
[Date "2022.04.10"]
[Round "1.29"]
[White "Korotkyi, Daniyil"]
[Black "Torres Rodero, Francisco"]
[Result "1-0"]
[ECO "B40"]
[WhiteElo "1726"]
[BlackElo "2048"]
[Annotator "RC"]
[PlyCount "57"]
[EventDate "2022.04.10"]
[EventType "swiss"]
[EventCountry "POR"]
[SourceTitle "playchess.com"]
[Source "ChessBase"]
[SourceQuality "1"]
[TimeControl "5400+30"]

1. e4 {[%emt 0:00:06]} c5 {[%emt 0:00:09]} 2. Nf3 {[%emt 0:00:21]} e6 {[%emt 0:00:11]} 3. c3 {[%emt 0:03:26]} Nc6 {[%emt 0:03:13]} 4. Bb5 {[%emt 0:01:33]} a6 {[%emt 0:02:30]} 5. Bxc6 {[%emt 0:01:12]} bxc6 {[%emt 0:00:21]} 6. d3 {[%emt 0:01:45]} Nf6 {[%emt 0:02:03]} 7. e5 {[%emt 0:18:29]} Nd5 {[%emt 0:01:48]} 8. c4 {[%emt 0:00:24]} Nc7 {[%emt 0:04:22]} 9. Ng5 {[%emt 0:28:57]} Be7 {[%emt 0:03:35]} 10. Qh5 {[%emt 0:00:54]} g6 {[%emt 0:01:57]} 11. Qg4 {[%emt 0:03:26]} f6 {[%emt 0:08:39]} 12. exf6 {[%emt 0:03:08]} Bxf6 {[%emt 0:02:43]} 13. Ne4 {[%emt 0:03:00]} Qe7 {[%emt 0:05:55]} 14. Qf4 {[%emt 0:09:45]} O-O {[%emt 0:08:33]} 15. Qxc7 {[%emt 0:01:00]} Bd4 {[%emt 0:01:14]} 16. O-O {[%emt 0:00:47]} Qh4 {[%emt 0:02:19]} 17. Qg3 {[%emt 0:01:46]} Qh5 {[%emt 0:00:30]} 18. Qg5 {[%emt 0:07:27]} Qe2 {[%emt 0:04:56]} 19. Qd2 {[%emt 0:00:50]} Qg4 {[%emt 0:02:51]} 20. h3 {[%emt 0:03:39]} Qf5 {[%emt 0:02:11]} 21. Qg5 {[%emt 0:01:23]} Qf7 {[%emt 0:01:33]} 22. Qg3 {[%emt 0:02:59]} d5 {[%emt 0:04:10]} 23. Nd6 {[%emt 0:01:12]} Qg7 {[%emt 0:00:54]} 24. Nxc8 {[%emt 0:02:07]} Raxc8 {[%emt 0:00:19]} 25. Nc3 {[%emt 0:00:32]} Be5 {[%emt 0:03:16]} 26. Qg4 {[%emt 0:00:36]} Rf5 {[%emt 0:02:00]} 27. Bd2 {[%emt 0:00:56]} Rcf8 {[%emt 0:01:35]} 28. Qe2 {[%emt 0:00:20]} Bg3 {[%emt 0:02:36]} 29. fxg3 {[%emt 0:00:56]} 1-0

[Event "Portuguese-ch U14-20 2022"]
[Site "Fatima"]
[Date "2022.04.10"]
[Round "1.30"]
[White "Reis, Pedro"]
[Black "Paiva, Rodrigo Garcia"]
[Result "0-1"]
[ECO "A05"]
[WhiteElo "1211"]
[BlackElo "1667"]
[Annotator "NA RC"]
[PlyCount "52"]
[EventDate "2022.04.10"]
[EventType "swiss"]
[EventCountry "POR"]
[SourceTitle "playchess.com"]
[Source "ChessBase"]
[SourceQuality "1"]
[TimeControl "5400+30"]

1. Nf3 Nf6 2. d4 d5 3. c4 g6 4. e3 Bg7 5. Be2 O-O 6. O-O Ne4 7. b3 c5 8. Bb2 Nc6 9. Nbd2 Bf5 10. Rc1 b6 11. h3 h5 12. cxd5 Qxd5 13. Nxe4 Bxe4 14. Rc4 cxd4 15. Nxd4 Nxd4 16. Bxd4 Bxg2 17. Bxg7 Kxg7 18. Rd4 Qc6 19. Rc4 Qb7 20. Qa1+ Kg8 21. Rfc1 Bxh3 22. Bf1 Bxf1 23. Kxf1 Rfd8 24. Qe5 Rd2 25. Ke1 Rad8 26. e4 Qd7 0-1

[Event "Portuguese-ch U14-20 2022"]
[Site "Fatima"]
[Date "2022.04.10"]
[Round "1.31"]
[White "Veleirinho, Tomas Carvalho"]
[Black "Mendes, Simao Pedro Garcia"]
[Result "1-0"]
[ECO "C10"]
[WhiteElo "1641"]
[BlackElo "1147"]
[Annotator "NA RC"]
[PlyCount "45"]
[EventDate "2022.04.10"]
[EventType "swiss"]
[EventCountry "POR"]
[SourceTitle "playchess.com"]
[Source "ChessBase"]
[SourceQuality "1"]
[TimeControl "5400+30"]

1. e4 {[%emt 0:00:58]} e6 {[%emt 0:00:05]} 2. d4 {[%emt 0:00:40]} d5 {[%emt 0:00:06]} 3. Nd2 {[%emt 0:01:12]} dxe4 {[%emt 0:00:26]} 4. Nxe4 {[%emt 0:02:17]} Nd7 {[%emt 0:00:39]} 5. Nf3 {[%emt 0:04:57]} Ngf6 {[%emt 0:01:59]} 6. Nxf6+ {[%emt 0:08:54]} Nxf6 {[%emt 0:01:08]} 7. g3 {[%emt 0:02:24]} b6 {[%emt 0:07:07]} 8. Bg2 {[%emt 0:00:38]} Bb7 {[%emt 0:02:48]} 9. O-O {[%emt 0:04:25]} c5 {[%emt 0:03:04]} 10. Be3 {[%emt 0:10:07]} Qc7 {[%emt 0:09:16]} 11. Qe2 {[%emt 0:14:58]} Nd5 {[%emt 0:06:24]} 12. dxc5 {[%emt 0:08:00]} Bxc5 {[%emt 0:04:23]} 13. Bxc5 {[%emt 0:01:22]} Qxc5 {[%emt 0:00:51]} 14. Ne5 {[%emt 0:03:37]} Qc7 {[%emt 0:05:56]} 15. Qb5+ {[%emt 0:02:46]} Ke7 {[%emt 0:01:50]} 16. Rfe1 {[%emt 0:02:07]} a6 {[%emt 0:01:26]} 17. Qb3 {[%emt 0:00:48]} Nf6 {[%emt 0:03:03]} 18. Qb4+ {[%emt 0:03:18]} Ke8 {[%emt 0:02:38]} 19. Bxb7 {[%emt 0:02:40]} Qxb7 {[%emt 0:00:09]} 20. Nc4 {[%emt 0:04:56]} Nd5 {[%emt 0:07:40]} 21. Nd6+ {[%emt 0:00:52]} Kd7 {[%emt 0:00:23]} 22. Qa3 {[%emt 0:00:32]} Qc6 {[%emt 0:04:26]} 23. Nxf7 {[%emt 0:00:34]} 1-0

[Event "Portuguese-ch U14-20 2022"]
[Site "Fatima"]
[Date "2022.04.10"]
[Round "1.32"]
[White "Lachever, Diogo Freire"]
[Black "Coelho, Goncalo Cavaz"]
[Result "1-0"]
[ECO "A40"]
[WhiteElo "1182"]
[BlackElo "1680"]
[Annotator "NA RC"]
[PlyCount "101"]
[EventDate "2022.04.10"]
[EventType "swiss"]
[EventCountry "POR"]
[SourceTitle "playchess.com"]
[Source "ChessBase"]
[SourceQuality "1"]
[TimeControl "5400+30"]

1. d4 {[%emt 0:00:08]} e6 {[%emt 0:00:11]} 2. Nf3 {[%emt 0:00:26]} Nf6 {[%emt 0:00:21]} 3. g3 {[%emt 0:00:33]} d5 {[%emt 0:00:27]} 4. Bg2 {[%emt 0:00:33]} Bb4+ {[%emt 0:00:52]} 5. Bd2 {[%emt 0:00:48]} Be7 {[%emt 0:00:34]} 6. O-O {[%emt 0:01:08]} O-O {[%emt 0:00:12]} 7. a3 {[%emt 0:03:29]} Ne4 {[%emt 0:00:56]} 8. Bb4 {[%emt 0:01:21]} c5 {[%emt 0:06:02]} 9. dxc5 {[%emt 0:01:35]} a5 {[%emt 0:00:26]} 10. Bc3 {[%emt 0:01:46]} Nxc3 {[%emt 0:01:23]} 11. Nxc3 {[%emt 0:00:15]} Bxc5 {[%emt 0:00:28]} 12. e3 {[%emt 0:01:31]} Nc6 {[%emt 0:03:19]} 13. Qd2 {[%emt 0:05:21]} b6 {[%emt 0:08:18]} 14. Nd4 {[%emt 0:05:46]} Nxd4 {[%emt 0:04:24]} 15. exd4 {[%emt 0:00:09]} Be7 {[%emt 0:00:10]} 16. Nb5 {[%emt 0:03:46]} a4 {[%emt 0:05:15]} 17. Rfe1 {[%emt 0:04:01]} Ba6 {[%emt 0:06:07]} 18. Nc3 {[%emt 0:00:22]} Qd7 {[%emt 0:01:29]} 19. Na2 {[%emt 0:05:28]} Bc4 {[%emt 0:06:04]} 20. Bf1 {[%emt 0:01:13]} Bf6 {[%emt 0:09:42]} 21. Bxc4 {[%emt 0:01:33]} dxc4 {[%emt 0:00:11]} 22. Rad1 {[%emt 0:01:21]} Rfd8 {[%emt 0:01:14]} 23. c3 {[%emt 0:01:57]} Ra5 {[%emt 0:06:30]} 24. Nb4 {[%emt 0:01:29]} Rh5 {[%emt 0:00:54]} 25. f4 Qb7 {[%emt 0:09:07]} 26. Qg2 {[%emt 0:06:42]} Qxg2+ {[%emt 0:04:22]} 27. Kxg2 {[%emt 0:00:05]} Rb5 {[%emt 0:00:14]} 28. Re2 {[%emt 0:03:22]} e5 {[%emt 0:05:27]} 29. Rde1 {[%emt 0:02:29]} Kf8 {[%emt 0:02:27]} 30. fxe5 {[%emt 0:00:28]} Be7 {[%emt 0:01:02]} 31. h4 {[%emt 0:03:26]} h5 {[%emt 0:04:36]} 32. Rf1 {[%emt 0:01:57]} Bxb4 {[%emt 0:03:12]} 33. axb4 {[%emt 0:00:13]} Ra8 {[%emt 0:00:22]} 34. Ref2 {[%emt 0:01:57]} Ra7 {[%emt 0:00:56]} 35. Rf5 {[%emt 0:01:29]} Kg8 {[%emt 0:03:25]} 36. Rxh5 {[%emt 0:00:45]} a3 {[%emt 0:00:34]} 37. bxa3 {[%emt 0:00:33]} Rxa3 {[%emt 0:00:16]} 38. Rf3 {[%emt 0:02:15]} Ra2+ {[%emt 0:04:16]} 39. Kh3 {[%emt 0:00:11]} Ra3 {[%emt 0:00:57]} 40. Rhf5 {[%emt 0:00:56]} Ra7 {[%emt 0:00:34]} 41. h5 {[%emt 0:00:55]} Rd5 {[%emt 0:00:37]} 42. g4 {[%emt 0:01:51]} Rdd7 {[%emt 0:00:29]} 43. g5 {[%emt 0:00:24]} Kh7 {[%emt 0:01:02]} 44. Kh4 {[%emt 0:01:57]} Re7 {[%emt 0:00:47]} 45. Rg3 {[%emt 0:02:53]} Ra1 {[%emt 0:01:39]} 46. g6+ {[%emt 0:00:26]} fxg6 {[%emt 0:00:29]} 47. hxg6+ {[%emt 0:00:12]} Kg8 {[%emt 0:00:07]} 48. Kh3 {[%emt 0:02:14]} Rd1 {[%emt 0:00:16]} 49. Rgf3 {[%emt 0:00:51]} Re8 {[%emt 0:00:09]} 50. e6 {[%emt 0:00:21]} Rg1 {[%emt 0:00:17]} 51. e7 {[%emt 0:00:51]} 1-0

[Event "Portuguese-ch U14-20 2022"]
[Site "Fatima"]
[Date "2022.04.11"]
[Round "2.1"]
[White "Martins, Bruno Andre Leite"]
[Black "Leao, Tiago Miguel Da Silv"]
[Result "1-0"]
[ECO "B47"]
[WhiteElo "2323"]
[BlackElo "2131"]
[Annotator "RC"]
[PlyCount "61"]
[EventDate "2022.04.10"]
[EventType "swiss"]
[EventCountry "POR"]
[SourceTitle "playchess.com"]
[Source "ChessBase"]
[SourceQuality "1"]
[TimeControl "5400+30"]

1. e4 {[%emt 0:06:33]} c5 {[%emt 0:00:08]} 2. Nf3 {[%emt 0:00:15]} e6 {[%emt 0:01:05]} 3. Nc3 {[%emt 0:02:17]} Nc6 {[%emt 0:00:30]} 4. d4 {[%emt 0:00:43]} cxd4 {[%emt 0:00:09]} 5. Nxd4 {[%emt 0:00:04]} Qc7 {[%emt 0:00:12]} 6. f4 {[%emt 0:01:51]} d6 {[%emt 0:08:32]} 7. Be3 {[%emt 0:02:16]} a6 {[%emt 0:01:57]} 8. Qf3 {[%emt 0:02:32]} e5 {[%emt 0:08:11]} 9. Nd5 {[%emt 0:12:00]} Qa5+ {[%emt 0:00:50]} 10. b4 {[%emt 0:04:47]} Qa3 {[%emt 0:13:46]} 11. Nxc6 {[%emt 0:14:17]} bxc6 {[%emt 0:01:05]} 12. Nc7+ {[%emt 0:00:10]} Kd8 {[%emt 0:03:45]} 13. Nxa8 {[%emt 0:00:46]} Qc3+ {[%emt 0:01:02]} 14. Kf2 {[%emt 0:00:36]} Qxa1 {[%emt 0:01:07]} 15. Bb6+ {[%emt 0:10:57]} Ke7 {[%emt 0:05:05]} 16. Bc4 {[%emt 0:05:34]} Qb2 {[%emt 0:10:12]} 17. fxe5 {[%emt 0:03:07]} Qxc2+ {[%emt 0:00:41]} 18. Be2 {[%emt 0:00:52]} Be6 {[%emt 0:05:58]} 19. Rd1 {[%emt 0:02:28]} Nh6 {[%emt 0:00:04]} 20. exd6+ {[%emt 0:13:14]} Kd7 {[%emt 0:00:15]} 21. h3 {[%emt 0:04:34]} f5 {[%emt 0:00:28]} 22. e5 {[%emt 0:04:45]} Nf7 {[%emt 0:05:37]} 23. Bd4 {[%emt 0:00:11]} Ng5 {[%emt 0:00:42]} 24. Nb6+ {[%emt 0:00:07]} Kd8 {[%emt 0:01:25]} 25. Qe3 {[%emt 0:00:59]} Ne4+ {[%emt 0:01:23]} 26. Kg1 {[%emt 0:00:47]} g5 {[%emt 0:00:10]} 27. Rc1 {[%emt 0:00:41]} Qxa2 {[%emt 0:00:23]} 28. Ra1 {[%emt 0:00:25]} Qb3 {[%emt 0:00:36]} 29. Qxb3 {[%emt 0:00:14]} Bxb3 {[%emt 0:00:04]} 30. Rxa6 {[%emt 0:00:09]} Ke8 {[%emt 0:01:14]} 31. Bh5+ {[%emt 0:00:18]} 1-0

[Event "Portuguese-ch U14-20 2022"]
[Site "Fatima"]
[Date "2022.04.11"]
[Round "2.2"]
[White "Voges, Guilherme"]
[Black "Machado, Tomas Dias"]
[Result "0-1"]
[ECO "A00"]
[WhiteElo "1657"]
[BlackElo "2030"]
[Annotator "RC"]
[PlyCount "92"]
[EventDate "2022.04.10"]
[EventType "swiss"]
[EventCountry "POR"]
[SourceTitle "playchess.com"]
[Source "ChessBase"]
[SourceQuality "1"]
[TimeControl "5400+30"]

1. g3 Nf6 2. Bg2 d5 3. d3 e6 4. Nf3 Be7 5. c4 O-O 6. cxd5 exd5 7. O-O h6 8. Bf4 c6 9. Nc3 Bf5 10. Re1 Na6 11. a3 d4 12. Nb1 Nc5 13. b4 Ne6 14. Be5 Ng4 15. h3 Nxe5 16. Nxe5 a5 17. b5 f6 18. g4 fxe5 19. gxf5 Rxf5 20. Qb3 Qd7 21. bxc6 bxc6 22. Nd2 Kh8 23. Rac1 Rc8 24. Ne4 c5 25. Ng3 Rg5 26. Bf3 Nf4 27. Bg2 Nxh3+ 28. Kh2 Nxf2 29. Rf1 Ng4+ 30. Kg1 Ne3 31. Rf3 h5 32. Rxe3 dxe3 33. Ne4 Rg6 34. Qf7 Qg4 35. Qf3 Qxf3 36. exf3 Rb8 37. Rc2 Rb3 38. Nc3 Rxa3 39. Nd5 Bg5 40. Kf1 Rxd3 41. f4 exf4 42. Rxc5 Rd2 43. Be4 Rd6 44. Nxf4 Rf2+ 45. Ke1 Rxf4 46. Rxg5 Rxe4 0-1

[Event "Portuguese-ch U14-20 2022"]
[Site "Fatima"]
[Date "2022.04.11"]
[Round "2.3"]
[White "Monteiro, Paulo Alexandre G"]
[Black "Oliveira, Beatriz Correia"]
[Result "1-0"]
[ECO "A08"]
[WhiteElo "2032"]
[BlackElo "1558"]
[Annotator "RC"]
[PlyCount "93"]
[EventDate "2022.04.10"]
[EventType "swiss"]
[EventCountry "POR"]
[SourceTitle "playchess.com"]
[Source "ChessBase"]
[SourceQuality "1"]
[TimeControl "5400+30"]

1. Nf3 {[%emt 0:00:04]} d5 {[%emt 0:03:02]} 2. g3 {[%emt 0:00:28]} c5 {[%emt 0:00:30]} 3. Bg2 {[%emt 0:00:16]} Nc6 {[%emt 0:00:17]} 4. O-O {[%emt 0:00:18]} Nf6 5. d3 Bf5 {[%emt 0:04:49]} 6. Nbd2 {[%emt 0:08:36]} e6 {[%emt 0:02:37]} 7. c3 {[%emt 0:08:29]} Be7 {[%emt 0:04:24]} 8. a3 {[%emt 0:04:09]} O-O {[%emt 0:06:41]} 9. b4 {[%emt 0:06:38]} a6 {[%emt 0:05:43]} 10. Nb3 {[%emt 0:09:18]} cxb4 {[%emt 0:08:10]} 11. axb4 {[%emt 0:08:39]} h6 {[%emt 0:08:22]} 12. Nfd4 {[%emt 0:03:44]} Nxd4 {[%emt 0:05:07]} 13. Nxd4 {[%emt 0:00:12]} Bg6 {[%emt 0:02:01]} 14. f4 {[%emt 0:10:11]} Rc8 {[%emt 0:02:40]} 15. Bd2 {[%emt 0:02:26]} Qb6 {[%emt 0:03:04]} 16. Qa4 {[%emt 0:05:16]} Bh5 {[%emt 0:10:51]} 17. Kh1 {[%emt 0:07:52]} Rfe8 {[%emt 0:06:45]} 18. Rfb1 {[%emt 0:04:21]} Bd8 {[%emt 0:04:50]} 19. Ra2 {[%emt 0:13:40]} Bc7 {[%emt 0:02:17]} 20. Be3 {[%emt 0:00:59]} Qd6 {[%emt 0:01:39]} 21. b5 {[%emt 0:01:41]} a5 {[%emt 0:01:23]} 22. Qa3 {[%emt 0:01:03]} Qxa3 23. Rxa3 Bb6 {[%emt 0:08:07]} 24. Rb2 {[%emt 0:02:46]} e5 {[%emt 0:05:01]} 25. Nf5 {[%emt 0:00:44]} Bxe3 {[%emt 0:00:57]} 26. Nxe3 {[%emt 0:00:05]} exf4 {[%emt 0:00:13]} 27. Nxd5 {[%emt 0:00:19]} Nxd5 {[%emt 0:00:40]} 28. Bxd5 {[%emt 0:00:06]} b6 {[%emt 0:00:11]} 29. gxf4 {[%emt 0:01:15]} Rxe2 {[%emt 0:01:37]} 30. Rxe2 {[%emt 0:00:15]} Bxe2 {[%emt 0:00:06]} 31. c4 {[%emt 0:01:15]} Kf8 {[%emt 0:01:54]} 32. Kg1 {[%emt 0:00:20]} Bh5 {[%emt 0:01:03]} 33. Kf2 {[%emt 0:00:35]} Ke7 {[%emt 0:01:06]} 34. Ra1 {[%emt 0:00:34]} Bg6 {[%emt 0:00:35]} 35. d4 {[%emt 0:00:36]} Bd3 {[%emt 0:00:37]} 36. Ke3 {[%emt 0:00:45]} Bc2 {[%emt 0:00:33]} 37. Rc1 {[%emt 0:00:27]} Bb3 {[%emt 0:00:15]} 38. Bc6 {[%emt 0:00:28]} Kd8 {[%emt 0:00:50]} 39. c5 {[%emt 0:00:23]} Kc7 {[%emt 0:00:17]} 40. Rg1 {[%emt 0:00:36]} g6 {[%emt 0:00:34]} 41. Kd2 {[%emt 0:00:26]} Rd8 {[%emt 0:00:31]} 42. Kc3 {[%emt 0:00:09]} Be6 {[%emt 0:00:30]} 43. Re1 {[%emt 0:00:46]} bxc5 {[%emt 0:00:40]} 44. dxc5 {[%emt 0:00:15]} Rb8 {[%emt 0:00:21]} 45. Ra1 {[%emt 0:00:41]} a4 {[%emt 0:00:33]} 46. Rxa4 {[%emt 0:00:36]} Rd8 {[%emt 0:00:33]} 47. Ra7+ {[%emt 0:00:10]} 1-0

[Event "Portuguese-ch U14-20 2022"]
[Site "Fatima"]
[Date "2022.04.11"]
[Round "2.4"]
[White "Paiva, Manuel Maria Fonseca"]
[Black "Ribeiro, Orlando"]
[Result "0-1"]
[ECO "C01"]
[WhiteElo "1370"]
[BlackElo "1945"]
[Annotator "RC"]
[PlyCount "34"]
[EventDate "2022.04.10"]
[EventType "swiss"]
[EventCountry "POR"]
[SourceTitle "playchess.com"]
[Source "ChessBase"]
[SourceQuality "1"]
[TimeControl "5400+30"]

1. e4 {[%emt 0:00:03]} e6 {[%emt 0:10:22]} 2. d4 {[%emt 0:00:06]} d5 {[%emt 0:00:09]} 3. exd5 {[%emt 0:00:02]} exd5 {[%emt 0:00:12]} 4. Bd3 {[%emt 0:00:07]} Bd6 {[%emt 0:01:01]} 5. Ne2 {[%emt 0:00:16]} Qf6 {[%emt 0:04:29]} 6. O-O {[%emt 0:02:18]} Ne7 {[%emt 0:04:35]} 7. c3 {[%emt 0:02:23]} Nbc6 {[%emt 0:04:36]} 8. Ng3 {[%emt 0:03:18]} h5 {[%emt 0:02:01]} 9. Re1 {[%emt 0:28:44]} Bg4 {[%emt 0:02:56]} 10. Qc2 {[%emt 0:07:24]} O-O-O {[%emt 0:00:50]} 11. h3 {[%emt 0:06:24]} h4 {[%emt 0:02:59]} 12. Nf1 {[%emt 0:00:25]} Be6 {[%emt 0:00:14]} 13. b4 {[%emt 0:06:05]} g5 {[%emt 0:00:30]} 14. Ne3 {[%emt 0:02:56]} Rdg8 {[%emt 0:01:23]} 15. Ng4 {[%emt 0:02:45]} Bxg4 {[%emt 0:00:55]} 16. hxg4 {[%emt 0:00:04]} h3 {[%emt 0:00:08]} 17. g3 {[%emt 0:10:56]} Qf3 {[%emt 0:00:52]} 0-1

[Event "Portuguese-ch U14-20 2022"]
[Site "Fatima"]
[Date "2022.04.11"]
[Round "2.6"]
[White "Oliveira, Daniela Sousa"]
[Black "Marques, Joao Goncalo B A"]
[Result "0-1"]
[ECO "A13"]
[WhiteElo "1272"]
[BlackElo "1418"]
[Annotator "NA RC"]
[PlyCount "84"]
[EventDate "2022.04.10"]
[EventType "swiss"]
[EventCountry "POR"]
[SourceTitle "playchess.com"]
[Source "ChessBase"]
[SourceQuality "1"]
[TimeControl "5400+30"]

1. c4 {[%emt 0:00:03]} e6 {[%emt 0:00:52]} 2. Nc3 {[%emt 0:00:15]} d5 {[%emt 0:01:29]} 3. cxd5 {[%emt 0:01:11]} exd5 {[%emt 0:00:07]} 4. d4 {[%emt 0:00:46]} Nf6 {[%emt 0:00:42]} 5. Nf3 {[%emt 0:07:18]} c6 {[%emt 0:00:15]} 6. Bd2 {[%emt 0:03:40]} Bd6 {[%emt 0:01:11]} 7. e3 {[%emt 0:00:37]} O-O {[%emt 0:03:27]} 8. Bd3 {[%emt 0:00:31]} Bg4 {[%emt 0:00:10]} 9. O-O {[%emt 0:01:45]} Qc7 {[%emt 0:02:44]} 10. g3 {[%emt 0:04:23]} Re8 {[%emt 0:05:58]} 11. Rc1 {[%emt 0:05:27]} Qd7 {[%emt 0:06:05]} 12. Be2 {[%emt 0:05:29]} Na6 {[%emt 0:08:04]} 13. a3 {[%emt 0:10:42]} Bf5 {[%emt 0:06:04]} 14. Na4 {[%emt 0:07:32]} h6 {[%emt 0:06:26]} 15. Nc5 {[%emt 0:04:51]} Nxc5 {[%emt 0:00:17]} 16. dxc5 Bc7 {[%emt 0:08:57]} 17. Bc3 {[%emt 0:03:22]} Ne4 {[%emt 0:01:08]} 18. Bd3 {[%emt 0:05:23]} Rad8 {[%emt 0:05:54]} 19. Qc2 {[%emt 0:07:29]} Bg6 {[%emt 0:06:54]} 20. Rfd1 {[%emt 0:06:37]} Qg4 {[%emt 0:04:06]} 21. Qe2 {[%emt 0:05:29]} Bh5 {[%emt 0:08:21]} 22. Nd4 {[%emt 0:05:37]} Qh3 {[%emt 0:04:27]} 23. Qf1 {[%emt 0:01:17]} Qd7 {[%emt 0:00:16]} 24. Be2 {[%emt 0:04:03]} Bg6 {[%emt 0:00:06]} 25. Nf3 {[%emt 0:01:01]} Nxc5 {[%emt 0:02:50]} 26. Bxg7 {[%emt 0:01:22]} Nb3 {[%emt 0:00:05]} 27. Rc3 {[%emt 0:00:40]} Kxg7 {[%emt 0:00:05]} 28. Rxb3 {[%emt 0:00:21]} Bc2 {[%emt 0:00:06]} 29. Rxb7 {[%emt 0:00:45]} Bxd1 {[%emt 0:00:11]} 30. Qxd1 {[%emt 0:00:20]} c5 {[%emt 0:05:10]} 31. Bb5 {[%emt 0:00:59]} Qc8 {[%emt 0:00:13]} 32. Rxc7 {[%emt 0:02:10]} Qxc7 {[%emt 0:00:07]} 33. Bxe8 {[%emt 0:00:07]} Rxe8 {[%emt 0:00:02]} 34. Qxd5 {[%emt 0:00:37]} Rb8 {[%emt 0:01:51]} 35. Qd2 {[%emt 0:01:16]} Qb6 {[%emt 0:01:03]} 36. Qc3+ {[%emt 0:00:21]} Kg8 {[%emt 0:00:05]} 37. Ne5 {[%emt 0:02:15]} Qxb2 {[%emt 0:04:19]} 38. Qxc5 {[%emt 0:00:16]} Qb1+ {[%emt 0:00:18]} 39. Kg2 {[%emt 0:00:12]} Qf5 {[%emt 0:00:11]} 40. Qxa7 {[%emt 0:02:29]} Qxe5 {[%emt 0:00:09]} 41. Qd4 {[%emt 0:01:11]} Qxd4 {[%emt 0:00:20]} 42. exd4 {[%emt 0:00:07]} Rd8 {[%emt 0:00:10]} 0-1

[Event "Portuguese-ch U14-20 2022"]
[Site "Fatima"]
[Date "2022.04.11"]
[Round "2.7"]
[White "Teves, Pedro"]
[Black "Lanca, Luis"]
[Result "1/2-1/2"]
[ECO "D30"]
[WhiteElo "1390"]
[BlackElo "1316"]
[Annotator "NA RC"]
[PlyCount "92"]
[EventDate "2022.04.10"]
[EventType "swiss"]
[EventCountry "POR"]
[SourceTitle "playchess.com"]
[Source "ChessBase"]
[SourceQuality "1"]
[TimeControl "5400+30"]

1. d4 {[%emt 0:00:10]} d5 {[%emt 0:00:50]} 2. c4 {[%emt 0:00:06]} e6 {[%emt 0:01:23]} 3. Nf3 {[%emt 0:00:06]} Nf6 {[%emt 0:01:37]} 4. g3 {[%emt 0:00:08]} c5 {[%emt 0:06:12]} 5. cxd5 {[%emt 0:02:13]} exd5 {[%emt 0:01:50]} 6. Bg2 {[%emt 0:00:10]} Nc6 {[%emt 0:00:41]} 7. O-O {[%emt 0:00:25]} cxd4 {[%emt 0:05:52]} 8. Nxd4 {[%emt 0:00:16]} Bc5 {[%emt 0:00:18]} 9. Nb3 {[%emt 0:03:24]} Bb6 {[%emt 0:01:05]} 10. Bg5 {[%emt 0:02:21]} h6 {[%emt 0:05:02]} 11. Bxf6 {[%emt 0:03:06]} Qxf6 {[%emt 0:00:08]} 12. Nc3 {[%emt 0:02:53]} O-O {[%emt 0:06:57]} 13. Qxd5 {[%emt 0:12:26]} Be6 {[%emt 0:03:37]} 14. Qf3 {[%emt 0:00:52]} Qe5 {[%emt 0:01:50]} 15. Qe4 {[%emt 0:02:14]} Qf6 {[%emt 0:01:35]} 16. Qf3 {[%emt 0:02:35]} Qg6 {[%emt 0:05:04]} 17. Qd3 {[%emt 0:09:37]} Qxd3 {[%emt 0:03:34]} 18. exd3 Rad8 19. Rad1 {[%emt 0:01:20]} Rd7 {[%emt 0:02:12]} 20. Rd2 {[%emt 0:06:27]} Rfd8 {[%emt 0:00:29]} 21. Nc1 {[%emt 0:07:40]} Ne5 {[%emt 0:03:59]} 22. a3 {[%emt 0:09:04]} Nxd3 {[%emt 0:01:46]} 23. Nxd3 {[%emt 0:01:18]} Rxd3 {[%emt 0:00:06]} 24. Rxd3 {[%emt 0:00:10]} Rxd3 {[%emt 0:00:04]} 25. Rd1 {[%emt 0:00:31]} Rxd1+ {[%emt 0:00:32]} 26. Nxd1 Bc8 27. Nc3 {[%emt 0:01:55]} Kf8 {[%emt 0:01:08]} 28. Kf1 {[%emt 0:00:43]} Bd4 {[%emt 0:04:55]} 29. Ke2 {[%emt 0:00:17]} b6 {[%emt 0:00:22]} 30. f4 {[%emt 0:00:40]} Ba6+ {[%emt 0:01:28]} 31. Kd2 {[%emt 0:00:18]} Bg1 {[%emt 0:00:13]} 32. h3 {[%emt 0:00:23]} Ke7 {[%emt 0:03:03]} 33. b4 {[%emt 0:01:50]} Kd6 {[%emt 0:01:05]} 34. Ne2 {[%emt 0:03:35]} Bf2 {[%emt 0:00:18]} 35. Nc3 {[%emt 0:00:22]} f5 {[%emt 0:00:59]} 36. g4 {[%emt 0:02:16]} Bc8 {[%emt 0:01:47]} 37. gxf5 {[%emt 0:00:26]} Bxf5 {[%emt 0:00:04]} 38. Ne4+ {[%emt 0:00:07]} Bxe4 {[%emt 0:00:13]} 39. Bxe4 {[%emt 0:00:08]} Bg3 {[%emt 0:01:23]} 40. Ke3 {[%emt 0:01:11]} Be1 {[%emt 0:00:37]} 41. b5 {[%emt 0:01:50]} Bc3 {[%emt 0:00:41]} 42. a4 {[%emt 0:00:12]} Bb2 {[%emt 0:00:34]} 43. Bc2 {[%emt 0:00:16]} g5 {[%emt 0:04:27]} 44. Ke4 {[%emt 0:02:39]} Bc1 {[%emt 0:03:50]} 45. fxg5 {[%emt 0:00:10]} hxg5 {[%emt 0:00:25]} 46. Kf5 {[%emt 0:00:10]} Ke7 {[%emt 0:01:05]} 1/2-1/2